bitfinex/quotes_ETHUSD_20250110
["timestamp","ask_amount","ask_price","bid_price","bid_amount"]
[1736524506060,3.0,3259.5,3258.2,3.06916]
[1736524506410,0.015,3259.2,3258.3,0.62778172]
[1736524506706,0.015,3258.6,3257.0,0.7649]
[1736524507004,0.55,3258.5,3257.7,3.06963]
[1736524507213,3.06814,3259.3,3257.8,0.33765392]
[1736524507354,0.03053927,3259.5,3257.9,0.7649]
[1736524507559,0.015,3259.4,3258.4,3.06898]
[1736524507757,0.0075,3259.2,3258.5,0.03068508]
[1736524508091,0.0075,3259.2,3257.9,0.7649]
[1736524508314,0.0075,3259.1,3257.9,3.06945]
[1736524508457,0.0225,3258.7,3257.9,0.40019816]
[1736524508657,0.0225,3258.7,3257.8,0.306963]
[1736524508901,0.0225,3258.7,3257.5,3.69827795]
[1736524509114,0.565,3258.5,3257.5,0.62845795]
[1736524509403,0.565,3258.5,3257.7,3.06956]
[1736524509404,0.0075,3258.5,3257.7,3.06956]
[1736524509636,0.0075,3258.5,3257.6,0.03069231]
[1736524509637,0.5725,3259.2,3257.1,0.8047]
[1736524509834,0.015,3257.5,3256.2,0.8293]
[1736524510134,0.015,3257.5,3256.0,3.07124]
[1736524510135,0.03053927,3257.5,3256.0,3.07124]
[1736524510281,0.03053927,3257.5,3256.0,3.07122]
[1736524510282,0.015,3256.7,3256.0,3.07122]
[1736524510483,0.015,3256.7,3255.5,0.777]
[1736524510484,0.015,3256.7,3255.9,3.07126]
[1736524510744,0.015,3256.5,3255.5,0.777]
[1736524510888,0.015,3256.5,3255.7,3.07151]
[1736524510889,0.015,3256.3,3255.7,3.07151]
[1736524511246,0.0075,3256.3,3256.0,3.07125]
[1736524511389,0.015,3256.6,3256.0,3.07125]
[1736524511592,0.015,3256.6,3255.8,3.0714]
[1736524512214,0.0075,3256.5,3255.7,0.36734108]
[1736524512422,0.0075,3256.3,3255.8,3.07142]
[1736524512729,0.0075,3256.3,3255.5,0.60190079]
[1736524512730,0.0075,3256.1,3255.5,3.07163]
[1736524512933,0.0075,3256.1,3255.4,3.07181]
[1736524513237,0.015,3256.1,3255.1,3.84902]
[1736524513403,0.0075,3256.1,3255.2,0.384902]
[1736524513759,0.0075,3256.3,3255.1,3.07206]
[1736524513760,0.03053927,3256.3,3255.1,3.07206]
[1736524513891,0.03053927,3256.3,3254.7,0.7846]
[1736524513892,3.0,3256.0,3254.7,0.7846]
[1736524514216,0.015,3255.8,3254.9,3.0722]
[1736524514417,0.015,3255.8,3255.0,3.07212]
[1736524514600,0.565,3255.6,3254.8,3.07238]
[1736524515146,0.0075,3255.5,3254.6,0.61814893]
[1736524515288,0.0075,3255.5,3254.3,0.7846]
[1736524515289,0.0075,3255.3,3254.7,3.07243]
[1736524515487,0.0075,3255.3,3254.8,3.07229]
[1736524516019,0.0075,3255.6,3254.5,0.6070765]
[1736524516192,0.0075,3255.6,3254.7,3.07245]
[1736524516193,0.015,3255.4,3254.7,3.07245]
[1736524516384,0.015,3255.2,3253.9,0.758]
[1736524516589,0.03053927,3255.9,3254.2,0.62337757]
[1736524516906,0.0225,3255.7,3254.7,3.07238]
[1736524517123,0.5725,3255.7,3254.5,3.0726]
[1736524517305,0.5725,3255.5,3254.6,3.10326061]
[1736524517527,0.565,3255.3,3254.7,3.07246]
[1736524517837,0.565,3255.3,3254.6,3.38283606]
[1736524518041,3.07098,3256.3,3254.8,3.85638]
[1736524518243,0.03053927,3256.2,3255.1,3.07206]
[1736524518407,0.5725,3256.1,3255.1,3.10280767]
[1736524518608,0.62706838,3256.8,3255.1,3.10280767]
[1736524518609,0.03053927,3256.4,3255.1,0.34099844]
[1736524518807,3.07063,3256.7,3255.5,3.07164]
[1736524519006,0.5725,3256.5,3255.3,3.07186]
[1736524519223,0.015,3256.1,3255.4,3.07178]
[1736524519541,0.015,3256.1,3255.1,0.31028077]
[1736524519542,0.5575,3256.0,3255.1,0.31028077]
[1736524519866,0.565,3255.8,3255.3,3.0719]
[1736524520068,0.565,3255.8,3255.0,3.07216]
[1736524520069,0.565,3255.6,3255.0,3.07216]
[1736524520342,0.0075,3255.6,3255.1,0.03071737]
[1736524520546,0.0075,3255.6,3254.4,1.1315]
[1736524520749,0.565,3255.9,3255.0,3.07211]
[1736524520888,0.565,3255.7,3255.1,0.03071623]
[1736524521090,0.015,3255.7,3254.8,0.62804414]
[1736524521343,0.015,3255.7,3254.8,0.99808655]
[1736524521657,0.015,3255.7,3254.5,3.0726]
[1736524522124,0.015,3255.7,3254.7,3.0724]
[1736524522329,0.015,3255.5,3254.5,3.07264]
[1736524522526,0.0075,3255.3,3254.6,3.07256]
[1736524522728,0.0075,3255.1,3254.0,0.8086]
[1736524522907,0.0075,3255.1,3254.6,3.07253]
[1736524523111,3.0,3255.8,3254.7,0.03072264]
[1736524523443,0.03053927,3255.7,3254.7,3.07246]
[1736524523649,3.5725,3255.8,3254.8,3.07237]
[1736524523800,0.5725,3255.6,3254.9,0.0307195]
[1736524524000,0.0075,3255.5,3254.9,3.1029995]
[1736524524234,3.0,3255.8,3254.9,0.34101945]
[1736524524235,0.03053927,3255.8,3254.9,0.34101945]
[1736524524429,0.03053927,3255.8,3255.2,3.072]
[1736524524637,0.0225,3256.0,3254.8,3.07233]
[1736524524844,0.05303927,3256.0,3255.1,3.07202]
[1736524524995,0.015,3255.8,3255.2,3.072]
[1736524525196,0.0075,3255.8,3255.4,3.07179]
[1736524525397,0.0075,3256.0,3255.6,3.07162]
[1736524525594,3.07023,3257.1,3256.1,3.07113]
[1736524525838,0.03053927,3257.0,3255.9,3.07134]
[1736524526039,0.015,3256.9,3256.0,3.07116]
[1736524526244,0.04553927,3256.9,3255.8,3.07143]
[1736524526392,0.015,3256.8,3255.8,0.388443]
[1736524526597,0.0075,3256.8,3255.9,0.03070843]
[1736524526800,0.03053927,3257.4,3255.7,4.02341773]
[1736524527071,0.349,3257.9,3255.8,3.07144]
[1736524527072,0.015,3257.0,3255.8,3.07144]
[1736524527216,0.015,3257.2,3256.2,3.07103]
[1736524527411,0.0075,3257.1,3255.9,3.07133]
[1736524527628,3.5725,3256.8,3255.9,3.07133]
[1736524527836,3.5725,3256.8,3255.6,0.813]
[1736524527837,0.565,3256.6,3256.0,3.07123]
[1736524528047,0.565,3256.6,3255.9,3.07131]
[1736524528413,0.015,3256.6,3255.9,3.07131]
[1736524528564,0.015,3256.6,3255.7,3.07145]
[1736524528771,3.565,3256.6,3255.8,3.07142]
[1736524528935,0.5575,3256.4,3255.8,3.07142]
[1736524529119,0.5575,3256.4,3255.1,0.7888]
[1736524529120,0.0075,3256.1,3255.6,3.07159]
[1736524529321,0.0075,3256.1,3254.7,5.18081773]
[1736524529322,0.015,3255.9,3254.7,5.18081773]
[1736524529523,0.0075,3255.7,3254.7,4.74794177]
[1736524529881,0.0075,3255.4,3254.2,7.90468773]
[1736524530021,0.015,3255.2,3254.2,3.88127]
[1736524530221,0.015,3255.0,3253.7,4.02341773]
[1736524530567,0.0075,3254.8,3253.7,4.02341773]
[1736524530770,0.0075,3254.8,3254.2,3.07289]
[1736524531097,0.0075,3254.8,3253.6,0.8084]
[1736524531238,0.0075,3254.6,3253.9,3.07319]
[1736524531420,0.0075,3254.4,3253.9,3.07319]
[1736524532276,0.0075,3254.4,3253.3,3.07378]
[1736524532579,0.565,3254.5,3253.4,0.05756705]
[1736524532873,0.565,3254.3,3253.8,3.07331]
[1736524533076,0.565,3254.3,3253.6,3.07347]
[1736524533077,0.015,3254.3,3253.6,3.07347]
[1736524533230,0.015,3254.3,3253.7,3.07338]
[1736524533231,0.04553927,3254.3,3253.7,3.07338]
[1736524533425,0.04553927,3254.3,3253.7,3.12404737]
[1736524534389,0.015,3254.3,3253.7,0.05066737]
[1736524534691,0.04553927,3254.3,3253.3,3.0738]
[1736524534899,3.07166,3255.6,3253.8,0.05073339]
[1736524535195,3.565,3255.1,3253.9,0.05059548]
[1736524535349,0.0075,3254.8,3254.0,3.07314]
[1736524535545,0.015,3254.7,3254.1,0.03072557]
[1736524535861,0.015,3254.7,3254.1,0.08104525]
[1736524536200,0.0075,3254.6,3254.1,0.05031968]
[1736524536350,0.0075,3254.4,3253.8,3.07325]
[1736524536550,0.0075,3254.2,3253.5,0.60973808]
[1736524536756,3.07202,3255.2,3253.9,0.04506128]
[1736524537093,4.17559495,3256.0,3253.6,0.03073115]
[1736524537094,0.03053927,3255.1,3253.6,0.03073115]
[1736524537317,0.015,3255.0,3253.6,0.03073115]
[1736524537455,0.015,3255.0,3254.3,3.07282]
[1736524537655,0.0075,3255.1,3254.3,3.07282]
[1736524537850,3.07219,3255.0,3253.8,3.07332]
[1736524538081,0.0225,3254.8,3253.8,3.07332]
[1736524538412,0.5725,3254.8,3253.9,0.04497376]
[1736524538563,0.0225,3254.8,3253.9,0.04497376]
[1736524538908,0.0225,3254.8,3253.8,3.07332]
[1736524539047,0.0075,3254.5,3253.6,3.07348]
[1736524539253,0.0075,3254.3,3254.0,0.05045758]
[1736524539452,0.015,3254.1,3253.6,3.07348]
[1736524539732,0.59553927,3254.1,3254.0,0.05040131]
[1736524539981,0.0225,3254.3,3253.7,0.04070267]
[1736524540184,0.5725,3254.3,3253.0,3.07407]
[1736524540452,0.5725,3254.1,3253.8,0.04059233]
[1736524540674,0.5575,3253.9,3253.3,0.03073302]
[1736524540868,0.0075,3253.9,3252.9,0.03073271]
[1736524541108,0.0075,3253.9,3253.4,0.04112936]
[1736524541268,3.5725,3254.1,3253.1,3.07396]
[1736524541456,3.5725,3254.1,3252.9,0.6247192]
[1736524541457,0.0225,3253.9,3253.5,0.04101901]
[1736524541652,0.0225,3253.9,3253.0,3.07401]
[1736524541893,0.0225,3253.9,3251.5,2.17139476]
[1736524541894,3.5725,3253.7,3253.6,0.04116754]
[1736524542093,0.60303927,3253.7,3252.9,0.0307373]
[1736524542254,0.015,3253.5,3252.6,0.61197988]
[1736524542456,0.03053927,3254.4,3252.7,0.03073744]
[1736524542766,0.03053927,3254.4,3253.2,3.07387]
[1736524542767,3.5725,3254.0,3253.2,3.07387]
[1736524542969,0.5725,3253.8,3252.9,3.07411]
[1736524543167,0.0075,3253.5,3253.3,0.0414986]
[1736524543353,0.0075,3253.3,3252.9,3.07411]
[1736524543563,0.0075,3253.3,3252.6,0.61197988]
[1736524543768,0.0075,3253.3,3252.7,0.03073724]
[1736524544034,0.0075,3253.5,3252.9,3.07409]
[1736524544183,0.0075,3253.5,3253.0,3.10476725]
[1736524544384,0.0075,3253.5,3253.1,3.07396]
[1736524544722,0.0075,3253.5,3253.0,3.07406]
[1736524544869,0.0075,3253.5,3252.8,0.37170971]
[1736524544870,0.0075,3253.5,3252.8,3.07426]
[1736524545074,0.015,3253.4,3252.1,3.86776]
[1736524545272,0.015,3253.2,3252.3,3.68616599]
[1736524545529,0.0075,3252.7,3252.1,3.07485]
[1736524545820,0.5575,3252.7,3251.6,3.07537]
[1736524546121,3.07362,3253.5,3252.4,3.07455]
[1736524546318,0.349,3254.1,3251.9,0.77307098]
[1736524546319,0.0075,3253.0,3251.9,0.77307098]
[1736524546482,0.015,3252.8,3252.2,3.07478]
[1736524546670,0.015,3252.8,3251.9,1.15789908]
[1736524546873,0.015,3252.8,3251.9,3.84815098]
[1736524547185,0.015,3252.8,3252.2,3.07475]
[1736524547412,0.0075,3252.6,3251.9,0.77307098]
[1736524547647,0.0075,3252.6,3252.0,3.10570406]
[1736524547850,0.0075,3252.6,3252.3,3.07471]
[1736524548153,3.07343,3253.7,3252.6,3.07438]
[1736524548301,0.03053927,3253.6,3252.6,3.07438]
[1736524548499,3.03053927,3253.6,3252.7,3.07435]
[1736524548713,0.5725,3253.5,3252.7,3.07435]
[1736524548921,0.5725,3253.3,3252.4,0.03074365]
[1736524549094,0.03053927,3253.4,3252.4,0.03074365]
[1736524549095,0.03053927,3253.4,3252.7,3.07436]
[1736524549335,0.03053927,3253.4,3252.7,3.02436]
[1736524549543,0.0075,3253.3,3252.8,0.04283281]
[1736524549850,0.03803927,3253.3,3252.3,0.8312]
[1736524549994,0.015,3253.0,3252.9,0.04272242]
[1736524550200,0.0075,3252.9,3252.4,3.0746]
[1736524550447,0.565,3253.0,3252.0,3.88501]
[1736524550448,0.015,3253.0,3252.0,3.88501]
[1736524550626,0.0075,3252.8,3252.2,3.0748]
[1736524550943,0.0075,3252.7,3252.0,3.07498]
[1736524551150,0.015,3252.6,3251.9,0.79218112]
[1736524551301,0.015,3252.6,3251.9,0.1685993]
[1736524551302,0.0075,3252.2,3251.9,0.1685993]
[1736524551507,0.0225,3252.2,3251.9,0.1685993]
[1736524552350,3.62503,3252.0,3251.9,0.1685993]
[1736524552578,7.02606927,3252.0,3251.9,0.1685993]
[1736524552707,6.99553,3252.0,3251.9,0.1685993]
[1736524553049,6.64753,3252.0,3251.9,0.1685993]
[1736524554854,6.64753,3252.0,3251.9,0.0995993]
[1736524555065,6.64753,3252.0,3251.9,9.3e-06]
[1736524555241,3.07585,3251.2,3250.1,3.70579052]
[1736524555417,0.03053927,3251.1,3250.3,3.0766]
[1736524555748,0.5725,3251.0,3250.4,0.04373293]
[1736524555960,0.0225,3251.0,3250.4,0.04373293]
[1736524556107,0.0225,3251.0,3250.4,3.12027293]
[1736524556304,0.0225,3251.0,3250.4,0.04373293]
[1736524556508,0.0225,3251.0,3250.6,3.07634]
[1736524556751,0.0225,3251.0,3250.4,3.10726315]
[1736524556963,0.0225,3251.0,3250.7,0.04340127]
[1736524557124,0.0225,3250.8,3250.0,3.07689]
[1736524557332,0.0225,3250.8,3249.8,3.07704]
[1736524557333,0.0075,3250.6,3249.8,3.07704]
[1736524557637,0.0075,3250.4,3250.1,0.04005877]
[1736524557863,0.0075,3250.4,3249.9,0.03076655]
[1736524558024,0.0075,3250.4,3250.2,0.03995824]
[1736524558222,0.0075,3250.6,3249.7,3.70040212]
[1736524558613,0.015,3250.6,3250.3,0.03985772]
[1736524558770,0.03053927,3251.1,3250.2,3.0767]
[1736524558981,0.03053927,3251.1,3250.4,3.11621721]
[1736524559277,0.03053927,3251.4,3250.5,0.03075933]
[1736524559576,0.5725,3251.8,3250.5,3.07642]
[1736524559778,0.0225,3251.6,3250.7,3.07625]
[1736524560187,0.0225,3251.6,3250.8,0.04329074]
[1736524560337,0.0075,3251.3,3250.8,0.04329074]
[1736524560531,0.0075,3251.4,3251.0,3.07596]
[1736524560795,3.68876317,3252.5,3250.4,0.64561024]
[1736524560796,3.0,3251.9,3250.9,0.03965401]
[1736524560936,4.37141773,3252.4,3250.3,0.8212]
[1736524560937,0.5725,3251.2,3250.3,3.07661]
[1736524561132,0.5725,3251.0,3250.2,0.62031169]
[1736524561394,0.0225,3251.0,3250.3,3.07662]
[1736524561555,0.05303927,3251.0,3250.3,3.07662]
[1736524561895,0.5725,3250.7,3249.7,0.63041609]
[1736524562075,3.55,3251.1,3249.2,3.07767]
[1736524562076,0.5725,3250.3,3249.2,3.07767]
[1736524562234,0.5725,3250.1,3248.8,3.07802]
[1736524562439,3.5725,3249.7,3248.8,3.07802]
[1736524562634,0.0075,3249.4,3248.8,3.07802]
[1736524562936,0.0075,3249.2,3248.6,0.82252094]
[1736524563137,3.0,3249.8,3248.6,0.1685993]
[1736524563344,0.0225,3249.4,3248.6,3.2468093]
[1736524563570,0.03053927,3249.4,3248.6,0.57158023]
[1736524563751,3.07693,3250.0,3248.9,3.07788]
[1736524563968,4.17739975,3250.9,3248.6,3.2468393]
[1736524563969,0.58053927,3249.9,3249.0,3.07781]
[1736524564287,0.03053927,3249.9,3248.6,3.2467993]
[1736524564492,0.03053927,3250.0,3249.1,0.7762]
[1736524564787,0.03053927,3251.3,3249.7,3.0772]
[1736524564942,0.03053927,3251.3,3249.9,3.07701]
[1736524565139,0.03053927,3251.3,3250.0,3.07692]
[1736524565485,0.03053927,3251.3,3250.1,0.03076427]
[1736524565690,0.0225,3251.1,3250.0,0.03717869]
[1736524565859,3.5725,3250.5,3250.2,0.03699439]
[1736524566040,0.03053927,3251.1,3248.7,4.02341773]
[1736524566041,0.5725,3250.3,3250.1,0.0328146]
[1736524566244,4.27341773,3251.4,3248.7,7.02341773]
[1736524566245,0.5725,3250.1,3249.4,0.6143353]
[1736524566448,0.5725,3249.9,3249.1,3.07777]
[1736524566759,0.0225,3249.7,3248.8,3.07805]
[1736524567072,0.0225,3249.7,3249.1,3.07774]
[1736524567288,0.0225,3249.7,3248.6,0.1685993]
[1736524567289,0.5725,3249.7,3248.9,3.07794]
[1736524567446,0.015,3249.5,3249.0,0.03077665]
[1736524567784,0.015,3249.5,3249.4,3.07749]
[1736524567985,0.0075,3250.0,3249.4,3.07749]
[1736524568190,0.0075,3249.8,3249.4,3.07749]
[1736524568486,0.0075,3249.8,3248.6,0.1685993]
[1736524568487,0.0075,3249.6,3248.6,0.1685993]
[1736524568706,0.0075,3249.4,3248.6,3.2468193]
[1736524569000,0.0075,3249.2,3248.6,3.2468193]
[1736524569158,0.0075,3249.0,3248.6,3.2468193]
[1736524569344,0.0075,3249.0,3248.7,3.07814]
[1736524569976,0.0075,3249.0,3248.6,0.1685993]
[1736524570575,0.0075,3249.0,3248.6,3.2467793]
[1736524570890,0.0075,3249.0,3248.7,3.07813]
[1736524571185,0.0075,3249.0,3248.6,0.1685993]
[1736524571186,0.03053927,3249.6,3248.8,0.03077991]
[1736524571391,3.0,3250.0,3248.6,0.1685993]
[1736524571588,0.05303927,3249.9,3248.6,0.49328523]
[1736524571793,0.015,3249.9,3249.6,3.07727]
[1736524571962,0.03053927,3250.8,3249.2,3.90232]
[1736524572144,0.03053927,3250.8,3249.3,4.05418669]
[1736524572344,0.03053927,3251.3,3249.7,3.0772]
[1736524572579,0.03053927,3251.3,3250.2,3.0767]
[1736524572781,0.0225,3251.0,3249.6,0.8325]
[1736524572968,3.015,3250.8,3249.7,3.0772]
[1736524573163,0.0075,3250.6,3249.8,0.03076719]
[1736524573346,0.0075,3250.6,3249.8,0.03076716]
[1736524573547,3.07547,3251.6,3250.5,3.07644]
[1736524573781,0.015,3251.4,3250.4,3.07652]
[1736524574080,0.015,3251.4,3250.6,0.03661729]
[1736524574284,0.015,3251.4,3250.5,3.11646664]
[1736524574540,0.015,3251.4,3250.7,0.03984564]
[1736524574685,0.03053927,3252.0,3251.4,3.0755]
[1736524574888,0.03053927,3252.4,3251.0,0.03075421]
[1736524575094,3.07474,3252.3,3251.5,0.0390419]
[1736524575346,3.07553,3251.5,3250.0,3.90135]
[1736524575489,0.0225,3251.3,3250.6,3.07635]
[1736524575839,0.0075,3251.3,3250.3,3.07659]
[1736524576132,0.015,3252.0,3250.4,7.13071414]
[1736524576338,0.015,3252.0,3251.4,3.07551]
[1736524576517,0.015,3252.0,3250.5,0.8145]
[1736524576518,0.015,3252.0,3251.5,3.07547]
[1736524576840,0.015,3252.0,3251.2,0.03075412]
[1736524577038,0.015,3252.0,3251.1,0.62301839]
[1736524577245,0.015,3252.0,3251.5,3.07548]
[1736524577551,0.03053927,3252.4,3251.2,3.07578]
[1736524577750,0.03053927,3252.7,3251.9,3.07504]
[1736524578063,0.03053927,3252.9,3252.0,3.07501]
[1736524578207,0.03053927,3252.9,3252.2,3.07475]
[1736524578409,0.015,3253.4,3251.9,3.07503]
[1736524578641,0.015,3253.0,3251.6,3.0754]
[1736524578850,0.015,3253.0,3252.2,3.07483]
[1736524578851,0.04553927,3253.0,3252.2,3.07483]
[1736524579054,0.015,3253.0,3252.7,3.07435]
[1736524579213,0.03053927,3253.7,3252.8,3.07426]
[1736524579413,0.015,3253.6,3252.8,3.07423]
[1736524579713,0.015,3253.6,3252.9,3.11891405]
[1736524579948,0.015,3253.6,3252.9,0.04475405]
[1736524580174,0.015,3253.6,3252.6,0.66201418]
[1736524580477,0.015,3254.3,3252.9,0.04475405]
[1736524580762,3.10349927,3254.2,3252.7,3.10509833]
[1736524580924,3.10349927,3254.2,3252.6,0.63127601]
[1736524580925,0.03053927,3254.1,3252.9,0.04475405]
[1736524581124,0.015,3254.0,3253.0,3.07406]
[1736524581361,0.015,3254.0,3252.7,0.03073766]
[1736524581516,0.015,3254.0,3253.5,3.07357]
[1736524581861,0.03053927,3254.4,3253.2,3.07386]
[1736524581862,0.015,3254.2,3253.2,3.07386]
[1736524582057,0.015,3254.2,3252.8,3.07427]
[1736524582058,0.04553927,3254.2,3253.4,3.07363]
[1736524582244,3.07219,3255.1,3252.7,3.07436]
[1736524582245,0.03053927,3254.3,3253.5,0.03073431]
[1736524582440,0.03053927,3254.3,3252.6,0.63127601]
[1736524582441,0.015,3255.1,3253.3,3.07371]
[1736524582624,0.015,3254.3,3253.3,3.07371]
[1736524582963,0.04553927,3254.3,3252.8,3.0]
[1736524583266,0.03053927,3254.7,3253.8,3.07329]
[1736524583458,0.015,3254.6,3253.9,0.03073071]
[1736524583664,0.015,3254.6,3254.3,3.07283]
[1736524583832,0.03053927,3255.2,3254.1,3.07304]
[1736524584028,3.5725,3255.2,3254.1,3.07304]
[1736524584243,0.015,3255.0,3254.1,3.07304]
[1736524584444,0.015,3255.0,3254.2,0.03072587]
[1736524584662,7.44275773,3256.0,3253.5,0.61928214]
[1736524584663,3.015,3255.2,3253.8,3.07332]
[1736524584844,0.015,3255.0,3254.2,3.07293]
[1736524585048,0.015,3255.0,3254.0,3.07312]
[1736524585259,0.015,3255.0,3254.3,3.07284]
[1736524585769,0.03053927,3255.2,3254.4,0.03072584]
[1736524585941,0.03053927,3255.2,3254.3,3.07284]
[1736524586335,0.0225,3255.1,3254.3,3.07284]
[1736524586574,0.0225,3255.1,3254.4,0.03072396]
[1736524586725,0.0225,3255.1,3254.3,3.07284]
[1736524586921,0.55,3255.3,3254.0,0.61010896]
[1736524586922,0.03053927,3255.3,3254.0,0.61010896]
[1736524587177,3.07086,3256.5,3254.7,3.07241]
[1736524587178,0.03053927,3255.8,3254.7,3.07241]
[1736524587490,3.015,3256.0,3254.8,3.07237]
[1736524587619,0.015,3255.8,3254.8,3.1030894]
[1736524587825,0.015,3255.8,3254.8,0.0307194]
[1736524588024,3.015,3255.8,3254.9,3.07228]
[1736524588281,0.5575,3255.6,3254.4,3.0727]
[1736524588568,0.0225,3255.2,3254.0,0.61010896]
[1736524588868,0.0225,3255.0,3254.0,0.61010896]
[1736524589082,0.015,3255.0,3254.6,3.07255]
[1736524589254,0.0225,3255.2,3254.6,3.07255]
[1736524589568,0.0225,3255.2,3254.4,3.07275]
[1736524589768,0.5725,3255.2,3254.2,3.07292]
[1736524589968,0.0225,3255.0,3254.3,0.03072393]
[1736524590177,0.0225,3255.0,3254.4,3.07268]
[1736524590528,3.07106,3256.2,3254.9,3.07229]
[1736524590729,3.07172,3255.5,3254.4,3.07271]
[1736524590927,0.0075,3255.2,3254.2,3.07291]
[1736524591245,0.015,3254.8,3254.0,3.07311]
[1736524591425,0.0075,3254.7,3254.1,0.03072578]
[1736524591625,0.0075,3254.7,3254.3,3.07285]
[1736524591858,3.0,3255.6,3254.6,3.0725]
[1736524592057,3.0,3255.6,3254.2,3.07286]
[1736524592058,0.03053927,3255.5,3254.7,3.07247]
[1736524592236,0.5725,3255.4,3254.7,3.07247]
[1736524592438,0.5725,3255.2,3254.5,3.07265]
[1736524592658,0.0225,3255.2,3254.5,3.07265]
[1736524592858,0.0225,3255.2,3254.1,3.1037624]
[1736524593062,0.0225,3255.2,3253.9,0.61056064]
[1736524593383,0.0225,3254.9,3254.0,3.07309]
[1736524593691,0.0225,3254.9,3254.1,3.073]
[1736524593898,0.05303927,3254.9,3254.2,0.03072567]
[1736524594080,0.05303927,3254.9,3254.3,3.07284]
[1736524594286,0.04553927,3254.9,3254.3,3.07284]
[1736524594600,3.55,3255.2,3254.6,3.07256]
[1736524594601,0.03053927,3255.2,3254.6,3.07256]
[1736524594803,0.03053927,3256.0,3253.9,4.08767703]
[1736524595097,0.015,3255.5,3254.3,3.48567077]
[1736524595449,0.0075,3255.4,3254.8,3.07232]
[1736524595852,0.0075,3255.4,3254.6,3.07248]
[1736524596058,0.5725,3255.1,3254.1,3.07304]
[1736524596337,0.0075,3254.8,3253.9,3.07319]
[1736524596481,0.0075,3254.7,3253.8,0.61923372]
[1736524596802,0.0075,3254.7,3254.0,3.07305]
[1736524597200,0.0075,3254.7,3253.8,0.61923372]
[1736524597372,0.0075,3254.5,3253.7,3.07333]
[1736524597702,0.0075,3254.2,3253.5,3.07357]
[1736524597882,0.0075,3254.2,3253.1,0.7976]
[1736524598050,0.0075,3254.2,3253.3,3.0738]
[1736524598254,3.0,3254.7,3253.3,3.0738]
[1736524598255,3.0,3254.9,3254.1,3.07304]
[1736524598473,0.03053927,3254.8,3254.1,3.07304]
[1736524598824,0.0075,3254.4,3253.3,0.6093245]
[1736524599101,0.0225,3253.8,3252.5,0.60673949]
[1736524599253,0.0075,3253.3,3252.3,0.7642]
[1736524599455,0.0075,3253.3,3252.4,3.07465]
[1736524599751,0.0075,3253.3,3251.9,3.07504]
[1736524599752,6.07418,3252.9,3251.9,3.07504]
[1736524600001,0.5725,3252.6,3251.7,3.07528]
[1736524600166,0.5725,3252.6,3251.2,3.87549]
[1736524600167,0.0225,3252.4,3251.2,3.87549]
[1736524600365,0.5725,3252.4,3251.4,3.07552]
[1736524600610,0.03053927,3252.8,3252.3,3.07474]
[1736524600909,0.03053927,3253.2,3252.0,3.07496]
[1736524601114,0.03053927,3253.7,3252.3,3.07471]
[1736524601413,3.0,3253.7,3252.1,0.65473435]
[1736524601706,0.60303927,3253.6,3252.1,0.60440067]
[1736524601885,0.60303927,3253.6,3252.3,3.07474]
[1736524602053,0.60303927,3253.6,3252.2,0.36044007]
[1736524602398,0.0075,3253.3,3252.4,3.07465]
[1736524602606,0.0075,3253.1,3252.1,3.67929067]
[1736524602766,0.015,3253.2,3253.0,3.07401]
[1736524602767,0.0075,3253.2,3253.0,3.07401]
[1736524602966,0.03053927,3254.1,3253.1,0.03073763]
[1736524603203,0.03053927,3254.3,3253.4,3.07369]
[1736524603409,0.0075,3253.9,3253.2,3.07386]
[1736524603559,0.0075,3253.7,3253.2,3.07386]
[1736524603968,0.0075,3253.7,3253.3,3.07379]
[1736524604124,0.03053927,3254.5,3253.4,0.0307348]
[1736524604423,3.07192,3255.3,3254.2,3.07292]
[1736524604627,0.347,3255.5,3253.3,3.0]
[1736524604628,0.03053927,3255.2,3253.5,0.03072593]
[1736524604827,0.03053927,3255.2,3253.5,0.33379852]
[1736524605127,3.08734,3254.9,3253.9,3.07322]
[1736524605281,0.015,3254.7,3253.9,3.07322]
[1736524605483,0.015,3254.7,3254.0,3.07311]
[1736524605678,0.015,3254.7,3253.6,3.07351]
[1736524605679,0.0075,3254.7,3254.3,3.07284]
[1736524605894,0.0075,3254.7,3254.1,3.10368687]
[1736524606097,0.015,3254.9,3254.0,3.07311]
[1736524606295,0.015,3254.7,3254.1,0.03072567]
[1736524606518,0.015,3254.7,3254.3,3.0728]
[1736524606713,0.015,3254.7,3254.1,0.03072567]
[1736524606983,0.5725,3254.6,3253.7,3.07338]
[1736524607182,0.0075,3254.3,3253.7,3.07338]
[1736524607620,0.0075,3254.3,3253.8,3.07331]
[1736524607817,0.015,3254.3,3253.8,3.07331]
[1736524608423,0.015,3254.3,3253.4,0.61405075]
[1736524608786,0.0075,3253.9,3252.6,0.7578]
[1736524608987,0.0075,3253.9,3253.2,3.07382]
[1736524609214,0.0075,3253.9,3253.4,3.07365]
[1736524609418,0.0225,3254.1,3253.5,3.0736]
[1736524609798,0.0225,3253.9,3253.0,0.62187109]
[1736524610000,0.0225,3253.7,3252.6,3.83225]
[1736524610244,0.05303927,3253.7,3252.9,3.0741]
[1736524610783,0.0075,3253.4,3252.6,0.383225]
[1736524610990,0.0075,3253.4,3252.6,3.07442]
[1736524611219,0.0075,3253.4,3252.3,3.07466]
[1736524611220,0.0075,3253.2,3252.3,3.07466]
[1736524611406,0.0075,3252.9,3252.3,3.07466]
[1736524612317,0.0075,3252.9,3252.0,0.63010544]
[1736524612318,0.0075,3252.7,3252.0,0.63010544]
[1736524612528,0.0075,3252.5,3252.0,3.07495]
[1736524612731,0.0075,3252.5,3252.1,0.05752421]